Cogmind - Beta 12 @@@ ROGUE MODE // 2023.12.14 @ 04:55:53 Player: puppit Result: Destroyed by G-34 Mercenary with Small Laser Performance ------------- Evolutions (1) 500 Regions Visited (3) 600 Robots Destroyed (24) 120 Value Destroyed (594) 594 Prototype IDs (8) 160 Alien Tech Used (0) 0 Bonus (0) 0 TOTAL SCORE: 1974 Bonus ------- None Cogmind --------- Core Integrity 0/400 Matter 320/450 Energy 117/125 System Corruption 1% Temperature Cool (10) Movement Walking (130) Location -9/Materials Parts ------- > --- POWER (1) -------- Light Ion Engine > --- PROPULSION (2) --- Titanium Leg Titanium Leg > --- UTILITY (4) ------ Compact Matter Pod Signal Interpreter Terrain Scan Processor Core Shielding > --- WEAPON (2) ------- (None) > --- INVENTORY (5) ---- Titanium Leg Titanium Leg Improved Utility Shielding Improved Utility Shielding High-powered Tractor Beam Peak State ------------ > --- POWER ------------ Cooled Ion Engine > --- PROPULSION ------- Titanium Leg Titanium Leg > --- UTILITY ---------- Compact Matter Pod Signal Interpreter Terrain Scan Processor Core Shielding > --- WEAPON ----------- EM Shotgun > --- INVENTORY -------- Titanium Leg Improved Utility Shielding Improved Utility Shielding High-powered Tractor Beam [Rating: 19] Favorites ----------- Power Light Nuclear Core Engine Light Ion Engine Power Core Light Nuclear Core Propulsion Hover Unit Leg Titanium Leg Wheel Compact Wheel Hover Unit Hover Unit Utility Terrain Scan Processor Device Improved Terrain Scanner Storage Compact Matter Pod Processor Terrain Scan Processor Protection Core Shielding Weapon Small Laser Energy Gun Small Laser Energy Cannon Light EM Pulse Cannon Ballistic Cannon Light Cannon Launcher Mini Grenade Launcher Build | -11 -10 -10 -9 ------- Run | Jun Mat Min Mat Slots Evolved 2 | . . . 2 Power . | . . . . Propulsion . | . . . . Utility 2 | . . . 2 Weapon . | . . . . Parts Attached 65 | 5 21 15 24 Power 15 | 1 2 5 7 Engine 13 | 1 . 5 7 Core 2 | . 2 . . Reactor . | . . . . Propulsion 17 | 2 7 3 5 Treads . | . . . . Leg 4 | . . . 4 Wheel 2 | 2 . . . Hover 11 | . 7 3 1 Flight . | . . . . Utility 19 | . 7 5 7 Device 9 | . 4 4 1 Storage 3 | . 1 . 2 Processor 6 | . 2 1 3 Hackware . | . . . . Protection 1 | . . . 1 Artifact . | . . . . Weapon 14 | 2 5 2 5 Energy Gun 7 | 2 2 2 1 Energy Cannon 3 | . . . 3 Ballistic Gun . | . . . . Ballistic Cannon 3 | . 3 . . Launcher 1 | . . . 1 Special Weapon . | . . . . Impact Weapon . | . . . . Slashing Weapon . | . . . . Piercing Weapon . | . . . . Special Melee Weapon . | . . . . Unidentified Prototypes 2 | . . 1 1 Parts Lost 18 | . 1 6 11 Power 5 | . . 2 3 Propulsion 6 | . 1 2 3 Utility 2 | . . 1 1 Weapon 5 | . . 1 4 Highest Loss Streak 6 | . 1 6 5 To Critical Strikes . | . . . . Average Slot Usage (%) 70 | . 81 56 67 Engine 5 | . 2 2 9 Core 4 | . 11 2 . Leg 5 | . . . 12 Wheel 3 | . 9 . . Hover 11 | . 14 23 2 Device 8 | . 10 10 5 Storage 2 | . 1 . 3 Processor 12 | . 6 5 22 Protection 1 | . . . 3 Energy Gun 10 | . 18 7 5 Energy Cannon 1 | . . . 2 Ballistic Cannon 2 | . 6 2 . Naked Turns 2 | . 1 1 . Heaviest Build 15 | 5 15 11 13 Greatest Support 34 | 26 26 12 34 Greatest Overweight (x) 2 | . 2 2 2 Average Overweight (x) . | . . . . Largest Inventory Capacity 8 | 5 8 5 5 Average Capacity 5 | 5 5 5 5 Most Carried 5 | 1 5 5 5 Average Carried 3 | . 2 3 3 Final Capacity 5 | 5 5 5 5 Final Carried 5 | 1 5 5 5 Class Distribution -------------------- 74% | Mutant 25% | Scavenger-Mutant Dominant Class ---------------- Mutant | -10/Materials Mutant | -10/Mines Mutant | -9/Materials Resources | -11 -10 -10 -9 ----------- Run | Jun Mat Min Mat Matter Collected 951 | 212 300 183 256 Remotely 10 | . 10 . . Salvage Created 899 | . 486 40 373 Parts 45 | . 24 5 16 Haulers Intercepted . | . . . . Recyclers Shooed . | . . . . Parts Field Recycled . | . . . . Retrieved Matter . | . . . . Parts Self-Destructed . | . . . . Prevented . | . . . . Kills | -11 -10 -10 -9 ------- Run | Jun Mat Min Mat Combat Hostiles Destroyed 18 | . 7 4 7 Guns 11 | . 7 1 3 Cannons 5 | . . 3 2 AOE 1 | . . . 1 Classes Destroyed 7 | . 5 1 1 Worker 1 | . 1 . . Recycler 3 | . 3 . . Watcher 3 | . 2 . 1 Swarmer 6 | . 3 3 . Grunt 7 | . 4 . 3 Sentry 4 | . . . 4 Assembled 1 | . . 1 . Best Kill Streak 4 | . 4 3 2 Combat Bots Only 3 | . 3 3 2 Max Kills in Single Turn 2 | . 2 1 1 Gunslinging 1 | . 1 . . Exploded 1 | . . . 1 Melee . | . . . . Uniques/NPCs Destroyed . | . . . . Combat | -11 -10 -10 -9 -------- Run | Jun Mat Min Mat Damage Taken 1894 | . 302 423 1169 Core 580 | . 92 84 404 Absorbed by Shields . | . . . . Redirected to Shielding 27 | . . . 27 Regen/Repaired (Parts) 20 | . . . 20 Core Remaining (%) 64 | 100 . 29 . Volleys Fired 118 | . 39 27 52 Largest 2 | . 2 2 2 Hottest 112 | . 105 105 112 Shots Fired 161 | . 70 29 62 Gun 109 | . 57 17 35 Cannon 46 | . 13 12 21 Launcher 6 | . . . 6 Special . | . . . . Kinetic 25 | . 13 12 . Thermal 92 | . 57 17 18 Explosive 6 | . . . 6 Electromagnetic 38 | . . . 38 Robot Hit Streak 9 | . 7 3 9 Robot Miss Streak 5 | . 3 5 4 Penetration Max . | . . . . Secondary Targets 1 | . 1 . . Max Gunslinging Chain 1 | . 1 . . Shots Hit Robots 86 | . 33 11 42 Core Hits 47 | . 21 5 21 Critical Kills . | . . . . Critical Parts Destroyed . | . . . . Critical Strikes 4 | . 1 . 3 Burn 1 | . 1 . . Corrupt 3 | . . . 3 Melee Attacks . | . . . . Impact . | . . . . Slashing . | . . . . Piercing . | . . . . Sneak Attacks . | . . . . Combat Hostiles . | . . . . Follow-up Attacks . | . . . . Damage Inflicted 1475 | . 467 191 817 Guns 843 | . 429 65 349 Cannons 551 | . 38 126 387 Explosions 68 | . . . 68 Melee . | . . . . Ramming 13 | . . . 13 Kinetic 164 | . 38 126 . Thermal 655 | . 429 65 161 Explosive 68 | . . . 68 Electromagnetic 575 | . . . 575 Impact . | . . . . Slashing . | . . . . Piercing . | . . . . Highest Corruption 1 | . . . 1 Average Corruption 1 | . . . 1 Corruption Purged . | . . . . Corruption Blocked . | . . . . Effects 4 | . . . 4 Message Errors 1 | . . . 1 Matter Fused 2 | . . . 2 Data Loss (major) 1 | . . . 1 Overload Shots . | . . . . Overflow Damage 26 | . . 16 10 Projectiles 26 | . . 16 10 Explosions . | . . . . Melee . | . . . . Knockbacks 3 | . 1 1 1 Impact 1 | . . . 1 Kinetic 2 | . 1 1 . Secondary . | . . . . Self-Inflicted Damage 35 | . . . 35 Shots 1 | . . . 1 Rammed . | . . . . Targets Rammed 6 | . . . 6 Kicked 6 | . . . 6 Crushed . | . . . . Highest Temperature 276 | . 276 148 219 Average Temperature 63 | . 90 32 45 Received Heat Transfer 814 | . 153 100 561 Siege Activations . | . . . . Robots Corrupted 1 | . . . 1 Combat Hostiles 1 | . . . 1 Parts Fried 4 | . . . 4 Impact Corruptions . | . . . . Robots Melted . | . . . . Combat Hostiles . | . . . . Parts Melted 2 | . 2 . . Heat Transferred 1624 | . 1080 148 396 Parts Sabotaged . | . . . . Parts Stolen . | . . . . Parts Stripped . | . . . . Power Chain Reactions . | . . . . Missiles Intercepted . | . . . . Alert | -11 -10 -10 -9 ------- Run | Jun Mat Min Mat Peak Influence 236 | . 236 115 154 Initial 45 | . . 45 . Average 69 | . 103 24 64 Maximum Alert Level 1 | . 1 . . Low Security (%) 96 | 100 90 100 100 Level 1 3 | . 9 . . Level 2 . | . . . . Level 3 . | . . . . Level 4 . | . . . . Level 5 . | . . . . High Security . | . . . . Max Security . | . . . . Squads Dispatched 3 | . . 1 2 Investigation 2 | . . 1 1 Extermination . | . . . . Reinforcement 1 | . . . 1 Assault . | . . . . Garrison . | . . . . Intercept . | . . . . Searches Triggered . | . . . . Construction Impeded . | . . . . Haulers Reinforced . | . . . . Active Scanning Responses . | . . . . Cargo Convoy Interrupts . | . . . . Stealth | -11 -10 -10 -9 --------- Run | Jun Mat Min Mat Distress Signals 1 | . . . 1 Communications Jammed . | . . . . Distress Signals . | . . . . Times Spotted 42 | . 13 11 18 Peak Tracking Total 6 | . 3 3 6 Tactical Retreats 4 | . 1 2 1 Traps | -11 -10 -10 -9 ------- Run | Jun Mat Min Mat Traps Triggered 8 | . 5 . 3 Indirectly . | . . . . Trap Hack Attempts . | . . . . Triggered . | . . . . Disarmed . | . . . . Reprogrammed . | . . . . Reused . | . . . . Traps Extracted . | . . . . Installed . | . . . . Triggered . | . . . . Machines | -11 -10 -10 -9 ---------- Run | Jun Mat Min Mat Machines Disabled 1 | . 1 . . Max in Single Turn 1 | . 1 . . Machines Repaired . | . . . . Machines Sabotaged . | . . . . Overloaded Fab Kills . | . . . . Hacking | -11 -10 -10 -9 --------- Run | Jun Mat Min Mat Machines Accessed 15 | . 7 2 6 Terminals 11 | . 7 1 3 Fabricators . | . . . . Repair Stations 1 | . . . 1 Recycling Units . | . . . . Scanalyzers 2 | . . . 2 Garrison Access . | . . . . Total Hacks 48 | . 25 5 18 Successful 29 | . 14 2 13 Failed 18 | . 10 3 5 Catastrophic 3 | . 2 1 . Database Lockouts 1 | . 1 . . Manual 6 | . 6 . . Terminals 37 | . 25 4 8 Fabricators . | . . . . Repair Stations 2 | . . . 2 Recycling Units . | . . . . Scanalyzers 8 | . . . 8 Garrison Access . | . . . . Terminal Hacks 21 | . 14 2 5 Record 9 | . 7 1 1 Robot Analysis 1 | . 1 . . Prototype ID Bank 4 | . 3 . 1 Open Door 1 | . . 1 . Emergency Access Points 1 | . . . 1 Alert Level 1 | . 1 . . Locate Traps 2 | . 1 . 1 Dispatch Records 1 | . . . 1 Zone Layout 1 | . 1 . . Fabricator Hacks . | . . . . Repair Station Hacks 2 | . . . 2 Scan Component 1 | . . . 1 Repair 1 | . . . 1 Recycling Unit Hacks . | . . . . Scanalyzer 6 | . . . 6 Insert Component 3 | . . . 3 Analyze 3 | . . . 3 Garrison Access Hacks . | . . . . Unauthorized Hacks . | . . . . Terminals . | . . . . Fabricators . | . . . . Repair Stations . | . . . . Recycling Units . | . . . . Scanalyzers . | . . . . Garrison Access . | . . . . Data Cores Recovered . | . . . . Used . | . . . . Hacking Detections 14 | . 7 1 6 Full Trace Events 3 | . . 1 2 Feedback Events . | . . . . Feedback Blocked . | . . . . Robot Schematics Acquired . | . . . . Robots Built . | . . . . Authchips . | . . . . Time . | . . . . Total Robot Build Rating . | . . . . Part Schematics Acquired 3 | . . . 3 Parts Built . | . . . . Authchips . | . . . . Time . | . . . . Total Part Build Rating . | . . . . Parts Repaired 1 | . . . 1 Time 26 | . . . 26 Parts Recycled . | . . . . Recycled Matter . | . . . . Retrieved Matter . | . . . . Retrieved Components . | . . . . Parts Scanalyzed 3 | . . . 3 Part Schematics Acquired 3 | . . . 3 Parts Damaged . | . . . . Bothacking | -11 -10 -10 -9 ------------ Run | Jun Mat Min Mat Used RIF Installer . | . . . . Robots Hacked . | . . . . Non-combat . | . . . . Combat . | . . . . Robot Hacks Applied . | . . . . Relay Couplers Released . | . . . . Fabnet Peak Effective % . | . . . . Robots Rewired . | . . . . Allies Hacked . | . . . . Hacks Repelled . | . . . . Allies | -11 -10 -10 -9 -------- Run | Jun Mat Min Mat Total Allies . | . . . . Largest Group . | . . . . Highest-Rated Group . | . . . . Highest-Rated Ally . | . . . . Total Orders 4 | . . 4 . EXPLORE 4 | . . 4 . Ally Attacks 15 | . . 15 . Total Damage . | . . . . Kills . | . . . . Allies Corrupted 1 | . . 1 . Allies Melted . | . . . . Intel | -11 -10 -10 -9 ------- Run | Jun Mat Min Mat Robot Analysis Total 1 | . 1 . . Derelict Logs Recovered 1 | . . 1 . Drone Launches 17 | . . 17 . Drone Recoveries 1 | . . 1 . Exploration | -11 -10 -10 -9 ------------- Run | Jun Mat Min Mat Turns Passed 1992 | 34 691 409 858 Spaces Moved 1863 | 30 740 523 570 Core 159 | 1 3 101 54 Treads . | . . . . Legs 418 | . . . 418 Wheels 266 | 29 237 . . Hover 1020 | . 500 422 98 Flight . | . . . . Fastest Speed 50 | 50 50 50 50 Average Speed 77 | 87 69 55 106 Slowest Speed 150 | 90 150 150 150 Overloaded Moves . | . . . . Propulsion Burnouts . | . . . . Robots Hopped . | . . . . Cave-ins Triggered . | . . . . Exploration Rate (%) 57 | 4 88 94 45 Regions Visited 3 Branch Regions 1 Pre-discovered Areas . | . . . . Known Exits Taken 1 | . . 1 . Unknown Exits Taken 2 | 1 1 . . Scrap Searched 1 | . . 1 . Spaces Dug . | . . . . Terrain Destroyed 31 | . . . 31 Melee . | . . . . Projectile . | . . . . AOE 31 | . . . 31 Terrain Rammed . | . . . . Walls Destroyed . | . . . . Machines Disabled . | . . . . Actions | -11 -10 -10 -9 --------- Run | Jun Mat Min Mat Total 2243 | 35 848 609 751 Wait 149 | . 31 34 84 Move 1860 | 29 739 522 570 Hop . | . . . . Pick Up 14 | 1 5 2 6 Fast Attach 48 | 5 16 9 18 Attach 10 | . . 4 6 Detach 7 | . 1 4 2 Swap 7 | . 5 2 . Drop 24 | . 12 5 7 Fire 118 | . 39 27 52 Melee . | . . . . Ram . | . . . . Kick 6 | . . . 6 Crush . | . . . . Escape Stasis . | . . . . Rewire . | . . . . Trap . | . . . . Miscellaneous . | . . . . Route ------- -11/Junkyard -10/Materials (discovered 4 exits: *Mat x3 / *Min) -10/Mines -9/Materials (discovered 3 exits: *Mat x2 / [*Sto]) History --------- Turn | Location | Event 17 | -11/Junkyard | Discovered new exit (range 15) 35 | -11/Junkyard | Entered Materials 75 | -10/Materials | Discovered new exit (range 15) 279 | -10/Materials | Discovered new exit (range 3) 299 | -10/Materials | Identified exit to Materials 332 | -10/Materials | Central database locked down 351 | -10/Materials | Discovered exit to Materials (range 12) 439 | -10/Materials | Discovered exit to Materials (range 8) 726 | -10/Materials | Entered Mines 793 | -10/Mines | Build established: Mutant 796 | -10/Mines | Assembled infested the area 812 | -10/Mines | Core integrity fell below 50% 844 | -10/Mines | Lost 6 parts (2p2n1u1w) 857 | -10/Mines | Learned Materials garrison access intel 859 | -10/Mines | Found the Drone Emporium 861 | -10/Mines | Found Prototype Device 861 | -10/Mines | Identified Bomb Drone Bay 909 | -10/Mines | Discovered exit to Materials (range 46) 1135 | -10/Mines | Entered Materials 1135 | -9/Materials | Evolved 2 slots: Utility x2 1147 | -9/Materials | Discovered new exit (range 10) 1204 | -9/Materials | Repaired Hover Unit 1325 | -9/Materials | Lost 5 parts (2p2n1w) 1351 | -9/Materials | Build established: Scavenger-Mutant 1474 | -9/Materials | Discovered new exit (range 9) 1631 | -9/Materials | Core integrity fell below 50% 1662 | -9/Materials | Build established: Mutant 1665 | -9/Materials | Lost 5 parts (1p1n1u2w) 1837 | -9/Materials | Discovered new exit (range 5) 1842 | -9/Materials | Identified exit to Materials 1904 | -9/Materials | Core integrity fell below 20% 1993 | -9/Materials | Destroyed by G-34 Mercenary with Small Laser Last Messages --------------- 01804_ Acquired 21 matter. 01837_ EXIT=FOUND 01842_ EXIT=IDENTIFIED: MATERIALS 01866_ System corrupted: Matter fused (-7). 01866_ G-34 Mercenary destroyed. 01871_ Acquired 43 matter. 01889_ W-16 Scout sends out distress signal. 01893_ K-01 Serf collects debris. 01906_ EM Shotgun destroyed. 01930_ Kicked G-34 Mercenary out of the way. 01930_ G-34 Mercenary knocked back. 01931_ Kicked G-34 Mercenary out of the way. 01932_ Kicked G-34 Mercenary. 01933_ G-34 Mercenary misfires. 01934_ Kicked G-34 Mercenary out of the way. 01960_ System corrupted: Substantial component data lost. 01961_ K-01 Serf destroyed. 01962_ Dropped Faulty Cld. Ion Engine. 01963_ Acquired Lgt. Ion Engine. 01977_ Kicked A-02 Transporter. Map ----- +----------------------------------------------------+ | ??????????????????????????#????????#?????????????? | | ??????????????????##??#?##???#???????????????????? | | ????????????????????????????????????#????????????? | | ?????????????#????????#??##?#??#?????????????????? | | ?????????????????????#####?????################### | | ??????????????????#?????#??????# # # #? | | ????????????????????##??#??????# < # # #? | | ????????????#???#?????#?######## # # #? | | ???????????#??????#????## + + # #? | | ????????? ??? ??? ?#???## # # "T" # "T" ## | | ???? ?????? ???? ???????# # # """ # """ + | | ??# ??????????? ????#?# """ # ######## ## | | ??# ????"????? ???##??# """ # ##############? | | ??# ???? ? ? ???#???## """ # # #? | | ??# ##?#??#?#?????############ # """ """ ## | | ??# #??#??####????# [ ## """ """ + | | ??# ?????? ??#?#?# [ ## # """ """ ## | | ??# ## ???? #? ?? # # # #? | | ??# #?? ?????### ############### | | ??# #?????? ?#????#######+### ############## | | ??# #???????##?##?#### | | ?## ##?? ??????#??#### | | ## ###+############# | | r#### ##########+### | | # ###+######## ## | | @ ## % % ##### ## | | ## #################a ## % ###?# "" ## | | ### ##????####?#?##### ## ##### """ ## | | # #???????#?#??##### ## ##??# S" ## | | # #???????#??### ##! ###?# ## | | + #????????#?### ##! ############# | | # #??????##?#??#!! ##! + | | # #??????#?###?# ## ####+##### | | ?# #??????????### ## #? ### | | ?# #?????##?###?# ! ########### """ ### | | ??# #????????#?#?##### ####?####?# """ ### | | ??# #???????#?????#?##gg ##?????#?## """ #?# | | ??# ################# g ##?##?#?## ### | | ??# #?##?###?# #?# ## | | ??# * #??##?##?########## # | | ?# =%! #?#??#?##??###???## # | | ?# ################# ##?#????#???#???### # | | # #? ???#######+#######??###??####??# # | | # #??""" "????# == #???#?##??#?### # | | + #??""" "????# #?#??#???###?## ## | | # #???"" ?????#"S """ """ #???????#?#?#?# ## | | # #??? ?????#""" """ """ #???????????### #? | | ### #####+####### "" """ """ #????????????#/#? | | # # ##???????? ??? # | | < + ###############???????????? #? | +----------------------------------------------------+ Best States ------------- Heat Dissipation 39 Energy Generation 14 Energy Capacity 250 Matter Stores 327 Matter Capacity 450 Sight Range 16 Terrain Scan Range 16 Terrain Scan Density 160 Core Shielding 20 Evasion (%) 55 Item Schematics ----------------- Lgt. EM Pulse Cannon | -9/Materials | Scanalyzed Hpw. Tractor Beam | -9/Materials | Scanalyzed Imp. Utility Shielding | -9/Materials | Scanalyzed Robot Schematics ------------------ None Fabricated ------------ Nothing Alien Tech Used ----------------- None Achievements -------------- Omniscient Cartographer Challenges ------------ None Game ------ Seed IonicAerolevRefractor Manual? 0 Play Time 00:42:05 Cumulative 12.9 hours Start 2023.12.14 @ 04:14:15 End 2023.12.14 @ 04:55:53 Sessions 1 Manual Loads 0 Difficulty Rogue Special Mode None Game No. 9 Rogue 9 Adventurer 0 Explorer 0 Win Type - Total 0 Types 0/0/0/0/0/0/0/0/0 Lore% 17 Gallery% 17 Achievement% 19 Wizard Run 0 Options --------- ASCII 0 Keyboard 1 Movement Arrows Keybinds 0 Fullscreen 1 Font 12/Proggy Map View 83x54 Tactical HUD 1 Map Filters NONE Filters NONE Steam 0 RUN: fda910f9-225b-4540-8ca1-2172d25666e7